Workbook

Sheet version5
A1: 1 | B1: RR 514 The contribution of public transport to economic productivity - spreadsheet developed to show how the Venables' model responds to a PT intervention
B2: Spreadsheet developed by Tim Hazledine
A3: 2 | B3: Implementing the Venables' model for an improvement in public transit | G3: NOTE: all numbers highlighted in green must be supplied by the analyst
A4: 3 | C4: Period 0 (base) | D4: Period 1 (after change) | E4: Equation | F4: Graph-ical
A5: 4 | B5: Value of additional output from existing commuters, $millions/year | D5: =(D14-C14)*C22*C19/1000 -> 0.1709970885 | F5: A | G5: The productivity of the original commuters benefits from the AE effects of the increase in worker numbers.
A6: 5 | B6: Net value of additional output from new commuters, $millions/year | D6: =(D22-C22)*D20*D21/1000*D13 -> 2.722455924 | F6: B | G6: This is the tax wedge of output that doesn't get soaked up in additional travel costs.
A7: 6 | B7: Travel cost savings of existing commuters, $millions/year | D7: =(C87-D87)/1000000 -> 2.562499536 | F7: E | G7: The original number of workers benefit from the shift in the travel cost function.
A8: 7 | B8: Net benefit to new commuters, $millions/year | D8: =0.5*C19*(D22-C22)*(D15-C45*C36/D36)/1000 -> 0.1439216952 | F8: D | G8: Rule-of-half' triangle approximating the rents to new workers net of their additional travel costs.
A9: 8 | B9: Net value additional output, unaffected commuters, $millions/year | D9: =(C23+0.5*(D23-C23))*C13*C19*(D14-C14)/1000 -> 0.3951640683 | G9: Nearly all of this is the tax wedge.
A10: 9 | B10: Total efficiency gains, $millions/year | D10: =SUM(D5:D9) -> 5.995038312 | G10: This is the productivity gain bottom line (including travel cost savings).
A11: 10
A12: 11 | B12: Travel cost of the marginal (nth) commuter, daily, $ | C12: =C15 -> 43.69565217 | D12: =IF(D25=1, D45, F45) -> 43.74546437 | F12: MTC
A13: 12 | B13: Income tax rate | C13: 0.33 | D13: =C13 -> 0.33 | F13: t
A14: 13 | B14: Daily productivity (wage) premium, $ | C14: =C21*C20/C19 -> 65.2173913 | D14: =D85 -> 65.29173786 | G14: The daily before-tax productivity premium earned by CBD workers over their outside option.
A15: 14 | B15: Daily after tax net CBD premium, $ | C15: =C14*(1-C13)*C16 -> 43.69565217 | D15: =D14*(1-D13) -> 43.74546437
A16: 15 | B16: Non-wage CBD worker utility factor | C16: 1 | G16: If people have a preference for/against working in CBD, apart from wages. If =1, implies no preference.
A17: 16 | D17: =D12-D15 -> 0 | F17: 0
A18: 17 | B18: Number of trips per work day | C18: 2
A19: 18 | B19: Number of workdays per year | C19: 230
A20: 19 | B20: Annual outside-option wage, $ | C20: 60000 | D20: =C20 -> 60000
A21: 20 | B21: CBD wage premium ratio | C21: 0.25 | D21: =D14*C19/D20 -> 0.2502849951 | G21: So, here assume a CBD wage/productivity premium of 25% on top of average outside option wage of $60K.
A22: 21 | B22: Directly affected CBD commuting workers, 000s, N | C22: 10 | D22: =C22*F22 -> 10.54936483 | E22: =(D12-D15)*1000000 -> 0 | F22: 1.054936483 | G22: This is the number you ADJUST to find equilibrium: ie where marginal travel cost= after tax wage premium.
A23: 22 | B23: Unaffected CBD commuting workers, 000s, U | C23: 70 | D23: =(D44/C44)^(1/(C39+C66))*C23/C22*D22 -> 70.05698975
A24: 23 | B24: Commuting mode share public transit | C24: 0.6 | D24: =IF(D25=1,D26,D68) -> 0.7
A25: 24 | B25: SWITCH to change source of commuting mode share number | D25: 1 | G25: If switch = 1, then spreadsheet chooses exogenous mode share; otherwise chooses modelled mode share
A26: 25 | B26: Exogenous new commuting mode share | D26: 0.7 | G26: START WITH THIS --ie, the PT innovation is here described in terms of its effect on JTW mode choice shares
A27: 26 | B27: Modelled new commuting mode share | D27: =C28*(D30/D29)^D31*D22^D32 -> 0.6965354905 | G27: This allows the mode share to be modelled as function of relative prices and distance (number of commuters)
A28: 27 | C28: =C24/((C29/C30)^C31*C22^C32) -> 0.4765969408
A29: 28 | B29: Full price of private vehicle commute, Ppv | C29: 1 | D29: 1
A30: 29 | B30: Full price of public transit commute, Ppt | C30: 1 | D30: 0.75
A31: 30 | B31: Elasticity of PV mode share wrt relative price | C31: -0.5 | D31: -0.5
A32: 31 | B32: Elasticity of PV mode share wrt distance | C32: 0.1 | D32: 0.1 | G32: Allows possibility of mode share differing according to distance of commute
A33: 32 | B33: Average trip time, minutes | C33: 23 | D33: =D37/D36*60 -> 23.02621955
A34: 33 | B34: Trip time of marginal commuter, TN | C34: =C67*C52^C66*C71*C22^(C39+C66) -> 46 | D34: =C67*D52^C66*C71*D22^(C39+C66) -> 46.05243911
A35: 34 | B35: Free-flow traffic speed, km/hour | C35: 50
A36: 35 | B36: Actual trip speed, km/hour | C36: =C35*C41 -> 37.5 | D36: =D69/D34*60 -> 39.5150717
A37: 36 | B37: Average trip distance, kms, d | C37: =C36*C33/60 -> 14.375 | D37: =D69^(2+C38)*(C70/(2+C38))/D22 -> 15.16471194
A38: 37 | B38: Commuter/distance parameter, theta | C38: 0
A39: 38 | B39: Sigma | C39: =1/(1+C38) -> 1
A40: 39 | B40: Exponent in trip-time model, beta | C40: 4
A41: 40 | B41: Ratio free-flow trip time to actual average trip time | C41: 0.75
A42: 41 | B42: Congestion parameter, b | C42: =C40*(1-C41) -> 1
A43: 42 | B43: Average travel time function scale parameter, a | C43: =(C33/C37)/((C55*C52)^C42) -> 0.2090452261
A44: 43 | B44: Travel cost of marginal commuter scale parameter, r | C44: =C15/(C22^(C39+C66)) -> 1.739555245 | D44: =C44*(D52/C52)^C66 -> 1.615906375
A45: 44 | B45: CHECK travel cost of marginal commuter, daily, $ | C45: =C44*C22^(C39+C66) -> 43.69565217 | D45: =2*C72*C67*D52^C66*C71*D22^(C39+C66) -> 43.74546437 | E45: =2*C72*C67*C52^C66*C71*C22^(C39+C66) -> 43.69565217
A46: 45 | B46: Private vehicle commuters, 000s | C46: =C22*(1-C24) -> 4 | D46: =D22*(1-D24) -> 3.164809449 | G46: assumes new mode split applies to new commuters
A47: 46 | B47: Commuters per private vehicle | C47: 1.3
A48: 47 | B48: Number affected commuting private vehicles, 000s | C48: =C46/C47 -> 3.076923077 | D48: =D46/C47 -> 2.434468807 | F48: =C22*(1-D68)/C47 -> 2.362920592
A49: 48 | B49: Number unaffected commuting private vehicles, 000s | C49: =C23*(1-C24)/C47 -> 21.53846154 | D49: =D23*(1-C24)/C47 -> 21.55599685
A50: 49 | B50: PT commuters, 000s | C50: =C22*C24 -> 6 | D50: =D22*D24 -> 7.384555381
A51: 50 | B51: PT/PV congestion equivalent factor | C51: 8 | G51: number of PT commuters to generate as much congestion as one private vehicle
A52: 51 | B52: Private vehicle-equivalent scalar, rho | C52: =C24/$C51+(1-C24)/$C47 -> 0.3826923077 | D52: =D24/$C51+(1-D24)/$C47 -> 0.3182692308 | E52: =C52^C66 -> 0.6809886806 | F52: =D52^C66 -> 0.6325835029
A53: 52 | B53: Number of non-commuter travellers per peak period, 000s | C53: 10 | G53: average number of non-commuters travelling in a 2-hour peak period
A54: 53 | B54: Commuter/non-commuter equivalence factor, gamma | C54: 1 | G54: number of non-commuters with same travel time impact as one commuter
A55: 54 | B55: Total equivalent peak travellers | C55: =C22+C54*C53 -> 20
A56: 55 | B56: Trip time/km of current travellers | C56: =C43*(C52*C55)^C42 -> 1.6 | D56: =C43*(D52*C55)^C42 -> 1.330653266 | G56: after the innovation, what would be the new trip time if numbers travelling don't change?
A57: 56 | B57: x% change traveller numbers for linearisation | C57: 0.05
A58: 57 | B58: Trip time/km of x% more travellers | C58: =C43*(C52*C55*(1+C57))^C42 -> 1.68 | D58: =C43*(C52*C58)^C42 -> 0.1344
A59: 58 | B59: Slope of linear approximation to trip-time equation, c | C59: =(C56-C58)/(C55-C55*(1+C57)) -> 0.08
A60: 59 | B60: Intercept of linear approximation to trip-time equation, t0 | C60: =C56-C59*C55 -> 0
A61: 60 | B61: Elasticity non-commuters wrt trip time | C61: -0.5 | G61: % change in number of non-commuters for a 1% change in trip time/km
A62: 61 | B62: Slope of linear approximation to non-commuter numbers equation, m | C62: =C61*C53/C56 -> -3.125
A63: 62 | B63: Intercept of linear approximation to non-commuter numbers equation, M0 | C63: =C53-C62*C56 -> 15
A64: 63 | B64: Intercept of linear relation between t and N, g | C64: =(C60+C59*C54*C63)/(1-C59*C54*C62) -> 0.96
A65: 64 | B65: Slope of linear relation between t and N, h | C65: =C59/(1-C59*C54*C62) -> 0.064
B66: Trip-time elasticity with respect to N, e | C66: =C65*C22/C56 -> 0.4
B67: Intercept of exponential trip time function, A | C67: =C56/((C52*C22)^C66) -> 0.935362791
A68: 67 | B68: Mode share of original commuters when this is modelled endogenously | D68: =C28*(D30/D29)^D31*C22^D32 -> 0.692820323
A69: 68 | B69: Distance travelled by marginal commuter, kms, z | C69: =C37*(C38+2)/(C38+1) -> 28.75 | D69: =D22^C39*C71 -> 30.32942389
B70: Distribution function scale parameter, k | C70: =C22*(C38+1)/(C69^(C38+1)) -> 0.347826087
B71: K | C71: =((C38+1)/C70)^C39 -> 2.875
B72: Perceived cost of commuting, $/min, w | C72: =C44/(2*C67*C71*C52^C66) -> 0.474952741
B73: CBD LAND USAGE BLOCK
B74: Space needed per private vehicle entering CBD, m2 | C74: 25 | G74: Parking + moving around the CBD
B75: Space -saving factor | C75: 0.5 | G75: Assume don't get all of it back for productive use
B76: Total private vehicle space, km2 | C76: =(C48+C49)*C74/1000 -> 0.6153846154
B77: Total area CBD, km2 | C77: 4 | G77: The three AUs making up the Auckland CBD cover approximately 4 km2
B78: Ratio productive/total land | C78: 0.5
B79: Total CBD area available for productive use | C79: =C77*C78 -> 2 | G79: Subtract land used for parks, churches, roads, apartments, universities, parking etc
B80: One-off space augmentation, km2 | D80: =(D24-C24)*C48*C75*C74/1000 -> 0.003846153846 | G80: CBD land made available for productive use because of fewer cars
B81: AGGLOMERATION ECONOMIES BLOCK
B82: AE employment exponent, delta | C82: 0.1
B83: AE available land elasticity, neta | C83: 0.2
B84: AE function intercept, B | C84: =C14/((C22+C23)^C82) -> 42.07793557 | D84: =C84*((C79+D80)/C79)^C83 -> 42.09410696
B85: Productivity premium, output/worker/day | C85: =C84*(C22+C23)^C82 -> 65.2173913 | D85: =D84*(D22+D23)^C82 -> 65.29173786 | G85: This is a fairly standard production function: cf. Venables + Ciccione/Hall
B86: TRAVEL COST BLOCK
B87: Total travel costs of original affected commuters, $/year | C87: =C18*C19*C72*C33*C22*1000 -> 50250000 | D87: =C87*(C36/D36) -> 47687500.46
B88: Total travel costs of all affected commuters, $/year | C88: =C87 -> 50250000 | D88: =C18*C19*C72*D33*D22*1000 -> 53070989.28

Sheet speed elasticity
A1: Calculating elasticity of trip time with respect to reduction in number of vehicle trips
F2: 780
F5: trip change
C6: Tf | D6: alpha | E6: beta | F6: 0.05 | G6: Vcap | H6: marginal | I6: new time | J6: elasticity | K6: speed % of freeflow
B7: 22.9 | C7: 20 | D7: 0.15 | E7: 4 | F7: =F$2*(1-F$6) -> 741 | G7: =F$2*((B7-C7)/(C7*D7))^(-1/E7) -> 786.6388964 | H7: =C7+C7*(E7+1)*D7*(F7/G7)^E7 -> 31.81034062 | I7: =C7*(1+D7*(F7/G7)^E7) -> 22.36206813 | J7: =((B7-I7)/I7)/F$6 -> 0.4811110243 | K7: =C7/B7*100 -> 87.33624454
B8: 22.9 | C8: 18 | D8: 0.15 | E8: 4 | F8: =F$2*(1-F$6) -> 741 | G8: =F$2*((B8-C8)/(C8*D8))^(-1/E8) -> 672.0266931 | H8: =C8+C8*(E8+1)*D8*(F8/G8)^E8 -> 37.95540312 | I8: =C8*(1+D8*(F8/G8)^E8) -> 21.99108062 | J8: =((B8-I8)/I8)/F$6 -> 0.8266254765 | K8: =C8/B8*100 -> 78.60262009
B9: 22.9 | C9: 16 | D9: 0.15 | E9: 4 | F9: =F$2*(1-F$6) -> 741 | G9: 599.0114728 | H9: =C9+C9*(E9+1)*D9*(F9/G9)^E9 -> 44.10046562 | I9: 21.62009312 | J9: =((B9-I9)/I9)/F$6 -> 1.18399756 | K9: 69.86899563
B10: 22.9 | C10: 14 | D10: 0.15 | E10: 4 | F10: =F$2*(1-F$6) -> 741 | G10: 543.6281344 | H10: =C10+C10*(E10+1)*D10*(F10/G10)^E10 -> 50.24552812 | I10: 21.24910562 | J10: =((B10-I10)/I10)/F$6 -> 1.55384834 | K10: 61.13537118
E11: trip change | F11: 0.07
B12: 22.9 | C12: 20 | D12: 0.15 | E12: 4 | F12: =F$2*(1-F$11) -> 725.4 | G12: 786.6388964 | H12: =C12+C12*(E12+1)*D12*(F12/G12)^E12 -> 30.84675414 | I12: 22.16935083 | J12: =((B12-I12)/I12)/F$11 -> 0.4708232271 | K12: 87.33624454
B13: 22.9 | C13: 18 | D13: 0.15 | E13: 4 | F13: =F$2*(1-F$11) -> 725.4 | G13: 672.0266931 | H13: =C13+C13*(E13+1)*D13*(F13/G13)^E13 -> 36.32727424 | I13: 21.66545485 | J13: =((B13-I13)/I13)/F$11 -> 0.8140313427 | K13: 78.60262009
B14: 22.9 | C14: 16 | D14: 0.15 | E14: 4 | F14: =F$2*(1-F$11) -> 725.4 | G14: 599.0114728 | H14: =C14+C14*(E14+1)*D14*(F14/G14)^E14 -> 41.80779434 | I14: 21.16155887 | J14: =((B14-I14)/I14)/F$11 -> 1.173584302 | K14: 69.86899563
B15: 22.9 | C15: 14 | D15: 0.15 | E15: 4 | F15: =F$2*(1-F$11) -> 725.4 | G15: 543.6281344 | H15: =C15+C15*(E15+1)*D15*(F15/G15)^E15 -> 47.28831444 | I15: 20.65766289 | J15: =((B15-I15)/I15)/F$11 -> 1.55067819 | K15: 61.13537118
E16: trip change | F16: 0.03
B17: 22.9 | C17: 20 | D17: 0.15 | E17: 4 | F17: =F$2*(1-F$16) -> 756.6 | G17: 786.6388964 | H17: =C17+C17*(E17+1)*D17*(F17/G17)^E17 -> 32.83674574 | I17: 22.56734915 | J17: =((B17-I17)/I17)/F$16 -> 0.4913453338 | K17: 87.33624454
B18: 22.9 | C18: 18 | D18: 0.15 | E18: 4 | F18: =F$2*(1-F$16) -> 756.6 | G18: 672.0266931 | H18: =C18+C18*(E18+1)*D18*(F18/G18)^E18 -> 39.68967385 | I18: 22.33793477 | J18: =((B18-I18)/I18)/F$16 -> 0.8387305225 | K18: 78.60262009
B19: 22.9 | C19: 16 | D19: 0.15 | E19: 4 | F19: =F$2*(1-F$16) -> 756.6 | G19: 599.0114728 | H19: =C19+C19*(E19+1)*D19*(F19/G19)^E19 -> 46.54260194 | I19: 22.10852039 | J19: =((B19-I19)/I19)/F$16 -> 1.193325163 | K19: 69.86899563
B20: 22.9 | C20: 14 | D20: 0.15 | E20: 4 | F20: =F$2*(1-F$16) -> 756.6 | G20: 543.6281344 | H20: =C20+C20*(E20+1)*D20*(F20/G20)^E20 -> 53.39553004 | I20: 21.87910601 | J20: =((B20-I20)/I20)/F$16 -> 1.555356041 | K20: 61.13537118
I29: =640/23 -> 27.82608696 | J29: =179/1134 -> 0.1578483245 | K29: =J29*60 -> 9.470899471
